fUST/lending_fUST_20250729
["ID","MTS","AMOUNT","RATE_DAILY","PERIOD"]
[375905098,1753779048597,-460.0,0.00019452,2]
[375905100,1753779048607,-460.0,0.00019452,2]
[375905102,1753779048616,-460.0,0.00019452,2]
[375905104,1753779048626,-460.0,0.00019452,2]
[375905106,1753779048635,-244.62174594,0.00019452,2]
[375905108,1753779048644,-460.0,0.00019452,2]
[375905110,1753779048654,-460.0,0.00019452,2]
[375905112,1753779048663,-460.0,0.00019452,2]
[375905114,1753779048673,-460.0,0.00019452,2]
[375905116,1753779048684,-460.0,0.00019452,2]
[375905118,1753779048694,-460.0,0.00019452,2]
[375905120,1753779048704,-460.0,0.00019452,2]
[375905122,1753779048713,-514.61,0.00019452,2]
[375905124,1753779048723,-460.0,0.00019452,2]
[375905126,1753779048732,-460.0,0.00019452,2]
[375905128,1753779048742,-460.0,0.00019452,2]
[375905130,1753779048753,-460.0,0.00019452,2]
[375905132,1753779048762,-460.0,0.00019452,2]
[375905134,1753779048772,-460.0,0.00019452,2]
[375905136,1753779048782,-460.0,0.00019452,2]
[375905138,1753779048792,-460.0,0.00019452,2]
[375905140,1753779048802,-460.0,0.00019452,2]
[375905142,1753779048811,-460.0,0.00019452,2]
[375905144,1753779048823,-460.0,0.00019452,2]
[375905146,1753779048840,-460.0,0.00019452,2]
[375905148,1753779048850,-460.0,0.00019452,2]
[375905150,1753779048859,-460.0,0.00019452,2]
[375905152,1753779048869,-460.0,0.00019452,2]
[375905154,1753779048879,-460.0,0.00019452,2]
[375905156,1753779048888,-460.0,0.00019452,2]
[375905158,1753779048898,-460.0,0.00019452,2]
[375905160,1753779048909,-460.0,0.00019452,2]
[375905162,1753779048918,-655.93,0.00019452,2]
[375905164,1753779048927,-460.0,0.00019452,2]
[375905166,1753779048937,-460.0,0.00019452,2]
[375905168,1753779048947,-460.0,0.00019452,2]
[375905170,1753779048956,-460.0,0.00019452,2]
[375905172,1753779048967,-204.96179272,0.00019452,2]
[375905174,1753779048983,-292.030188,0.00019452,2]
[375905176,1753779049001,-167.969812,0.00019452,2]
[375905178,1753779049011,-460.0,0.00019452,2]
[375905180,1753779049021,-460.0,0.00019452,2]
[375905182,1753779049030,-460.0,0.00019452,2]
[375905184,1753779049040,-460.0,0.00019452,2]
[375905186,1753779049049,-460.0,0.00019452,2]
[375905188,1753779049059,-460.0,0.00019452,2]
[375905190,1753779049069,-460.0,0.00019452,2]
[375905193,1753779049079,-460.0,0.00019452,2]
[375905195,1753779049089,-460.0,0.00019452,2]
[375905197,1753779049099,-154.39640782,0.00019452,2]
[375905199,1753779049108,-460.0,0.00019452,2]
[375905200,1753779049119,-460.0,0.00019452,2]
[375905202,1753779049129,-460.0,0.00019452,2]
[375905205,1753779049139,-460.0,0.00019452,2]
[375905207,1753779049149,-460.0,0.00019452,2]
[375905209,1753779049159,-460.0,0.00019452,2]
[375905210,1753779049171,-460.0,0.00019452,2]
[375905212,1753779049184,-460.0,0.00019452,2]
[375905214,1753779049194,-460.0,0.00019452,2]
[375905216,1753779049204,-460.0,0.00019452,2]
[375905218,1753779049215,-460.0,0.00019452,2]
[375905221,1753779049224,-460.0,0.00019452,2]
[375905223,1753779049233,-460.0,0.00019452,2]
[375905224,1753779049243,-460.0,0.00019452,2]
[375905238,1753779049254,-460.0,0.00019452,2]
[375905241,1753779049378,-338.11491038,0.00019452,2]
[375905258,1753779049536,-268.28574218,0.00019178,2]
[375905260,1753779049547,-121.88508962,0.00019452,2]
[375905262,1753779049556,-31.30119383,0.00019452,2]
[375905264,1753779049567,-330.60298117,0.00019452,2]
[375905266,1753779049579,-98.095825,0.00019452,2]
[375905268,1753779049589,-460.0,0.00019452,2]
[375905270,1753779049598,-460.0,0.00019452,2]
[375905272,1753779049608,-596.35,0.00019452,2]
[375905274,1753779049618,-579.39,0.00019452,2]
[375905276,1753779049628,-460.0,0.00019452,2]
[375905278,1753779049637,-460.0,0.00019452,2]
[375905281,1753779049647,-460.0,0.00019452,2]
[375905283,1753779049656,-460.0,0.00019452,2]
[375905284,1753779049666,-460.0,0.00019452,2]
[375905286,1753779049676,-460.0,0.00019452,2]
[375905288,1753779049685,-460.0,0.00019452,2]
[375905291,1753779049694,-460.0,0.00019452,2]
[375905292,1753779049703,-460.0,0.00019452,2]
[375905294,1753779049713,-460.0,0.00019452,2]
[375905297,1753779049723,-526.53622921,0.00019452,2]
[375905299,1753779049733,-460.0,0.00019452,2]
[375905301,1753779049742,-460.0,0.00019452,2]
[375905303,1753779049753,-460.0,0.00019452,2]
[375905305,1753779049763,-216.24187738,0.00019452,2]
[375905307,1753779049772,-460.0,0.00019452,2]
[375905309,1753779049782,-460.0,0.00019452,2]
[375905311,1753779049792,-460.0,0.00019452,2]
[375905313,1753779049802,-354.07762996,0.00019452,2]
[375905315,1753779049811,-220.18473095,0.00019452,2]
[375905317,1753779049821,-460.0,0.00019452,2]
[375905319,1753779049830,-460.0,0.00019452,2]
[375905321,1753779049839,-460.0,0.00019452,2]
[375905323,1753779049849,-460.0,0.00019452,2]
[375905325,1753779049859,-460.0,0.00019452,2]
[375905327,1753779049868,-460.0,0.00019452,2]
[375905329,1753779049877,-460.0,0.00019452,2]
[375905331,1753779049887,-460.0,0.00019452,2]
[375905333,1753779049896,-460.0,0.00019452,2]
[375905335,1753779049906,-460.0,0.00019452,2]
[375905337,1753779049916,-460.0,0.00019452,2]
[375905339,1753779049925,-115.42668572,0.00019452,2]
[375905410,1753779050617,-1906073.12121661,0.000385,120]
[375905413,1753779050642,-2979.46,0.0003863,120]
[375905417,1753779050667,-4236.0,0.000388,120]
[375905420,1753779050693,-5000.0,0.0003889,30]
[375905424,1753779050717,-5000.0,0.0003889,30]
[375905428,1753779050743,-5000.0,0.0003889,30]
[375905431,1753779050769,-5000.0,0.0003889,30]
[375905435,1753779050794,-5000.0,0.0003889,30]
[375905438,1753779050819,-5000.0,0.0003889,30]
[375905441,1753779050843,-5000.0,0.0003889,30]
[375905444,1753779050868,-438.08545,0.00039,120]
[375905447,1753779050891,-1174.54535,0.00039,120]
[375905450,1753779050916,-16000.0,0.00039,30]
[375905454,1753779050941,-3798.70554048,0.00039,120]
[375905457,1753779050967,-10000.0,0.00039,120]
[375905461,1753779050992,-200.0,0.00039089,120]
[375905465,1753779051026,-1400.02143799,0.00039337,120]
[375905468,1753779051052,-163.0,0.000394,120]
[375905471,1753779051078,-5000.0,0.0003949,90]
[375905475,1753779051103,-1000.0,0.000395,120]
[375905478,1753779051129,-200.0,0.00039744,120]
[375905482,1753779051155,-200.0,0.00039781,120]
[375905485,1753779051182,-1315.7520454,0.0003985,120]
[375905489,1753779051207,-200.0,0.00039857,120]
[375905492,1753779051232,-200.0,0.00039885,120]
[375905496,1753779051261,-200.0,0.00039888,120]
[375905498,1753779051287,-200.0,0.00039905,120]
[375905502,1753779051313,-200.0,0.0003991,120]
[375905505,1753779051338,-1315.7520454,0.00039935,120]
[375905510,1753779051384,-1315.7520454,0.00039937,120]
[375905514,1753779051408,-200.0,0.00039951,120]
[375905517,1753779051433,-1315.7520454,0.0003997,120]
[375905520,1753779051458,-5000.0,0.0003999,120]
[375905523,1753779051482,-674.05282332,0.0003999,120]
[375905827,1753779066100,-2234.6,0.00027671,120]
[375905828,1753779066131,-2234.6,0.00029863,120]
[375905829,1753779066161,-2234.6,0.00032054,120]
[375905830,1753779066196,-2234.6,0.00034246,120]
[375905831,1753779066224,-2234.6,0.00036438,120]
[375905832,1753779066251,-2234.6,0.0003863,120]
[375905833,1753779066284,-4325.94717668,0.0003999,120]
[375905834,1753779066309,-2744.3020445,0.0003999,120]
[375905835,1753779066336,-200.0,0.00039992,120]
[375905836,1753779066361,-500.0,0.0004,120]
[375905837,1753779066386,-2800.0,0.0004,120]
[375905838,1753779066410,-50921.71876925,0.0004,120]
[375905839,1753779066435,-1770.72219781,0.0004,120]
[375905840,1753779066459,-1106.61148536,0.0004,30]
[375905841,1753779066482,-236.04927436,0.0004,120]
[375905842,1753779066506,-212621.07542048,0.0004,30]
[375905843,1753779066532,-515.17629736,0.0004,30]
[375905844,1753779066566,-27216.70994411,0.0004,30]
[375905845,1753779066591,-619.16446119,0.0004,120]
[375905846,1753779066618,-157.47099889,0.0004,120]
[375905847,1753779066642,-894.06056197,0.0004,120]
[375905848,1753779066668,-51820.59578454,0.0004,30]
[375905849,1753779066693,-2647.55319798,0.0004,120]
[375905850,1753779066719,-10000.000001,0.0004,120]
[375905851,1753779066744,-100000.0000609,0.0004,30]
[375905852,1753779066770,-973.0,0.0004,120]
[375905853,1753779066794,-10183.55252258,0.0004,120]
[375905854,1753779066823,-800.0,0.0004,120]
[375905855,1753779066851,-50075.29427361,0.0004,30]
[375905856,1753779066878,-10000.0,0.0004,120]
[375905857,1753779067024,-50000.0,0.0004,30]
[375905858,1753779067050,-50000.0,0.0004,30]
[375905859,1753779067075,-50000.0,0.0004,30]
[375905860,1753779067100,-50000.0,0.0004,30]
[375905861,1753779067124,-50000.0,0.0004,30]
[375905862,1753779067148,-50000.0,0.0004,30]
[375905863,1753779067172,-50000.0,0.0004,30]
[375905864,1753779067199,-5121.0,0.0004,30]
[375905865,1753779067225,-312.16666667,0.0004,120]
[375905866,1753779067248,-526.67226028,0.0004,120]
[375905867,1753779067276,-155.0,0.0004,120]
[375905868,1753779067300,-1000.0,0.000405,120]
[375905869,1753779067323,-163.0,0.000405,120]
[375905870,1753779067349,-718.98,0.000407,120]
[375905871,1753779067373,-2234.6,0.00040821,120]
[375905872,1753779067398,-72895.36965831,0.00041,120]
[375905873,1753779067422,-3592.0,0.00041,120]
[375905874,1753779067447,-10167.45163,0.00041,120]
[375905875,1753779067473,-151.0,0.00041094,30]
[375905876,1753779067501,-151.0,0.00041094,30]
[375905877,1753779067526,-151.0,0.00041094,30]
[375905878,1753779067552,-151.0,0.00041094,30]
[375905879,1753779067576,-151.0,0.00041094,30]
[375905880,1753779067600,-152.89295773,0.00041094,30]
[375905881,1753779067624,-501.9488933,0.00041094,30]
[375905882,1753779067648,-151.0,0.00041094,30]
[375905883,1753779067673,-1888.0,0.00041094,30]
[375905884,1753779067697,-151.0,0.00041094,30]
[375905885,1753779067724,-152.08797531,0.00041094,30]
[375905886,1753779067748,-1778.0,0.00041094,30]
[375905887,1753779067774,-2000.0,0.00041095,30]
[375905888,1753779067799,-1400.80106766,0.00041095,30]
[375905889,1753779067826,-5000.0,0.00041096,30]
[375905890,1753779067850,-5000.0,0.00041096,30]
[375905891,1753779067874,-5000.0,0.00041096,30]
[375905892,1753779067897,-5110.89252957,0.00041096,30]
[375905893,1753779067922,-659.91,0.00041096,120]
[375905894,1753779067946,-320.28272,0.00041096,120]
[375905895,1753779067970,-22671.79015326,0.000411,120]
[375905896,1753779067995,-5000.0,0.0004149,90]
[375905897,1753779068021,-200.0,0.00041568,120]
[375905898,1753779068046,-163.0,0.000416,120]
[375905899,1753779068071,-200.0,0.00041627,120]
[375905900,1753779068096,-200.0,0.00041627,120]
[375905901,1753779068120,-200.0,0.00041627,120]
[375905902,1753779068144,-200.0,0.00041627,120]
[375905903,1753779068169,-200.0,0.00041627,120]
[375905904,1753779068197,-200.0,0.00041627,120]
[375905905,1753779068223,-200.0,0.00041743,120]
[375905906,1753779068247,-23752.56779631,0.000418,120]
[375905907,1753779068275,-2926.11103225,0.000419,120]
[375905908,1753779068300,-800.0,0.00042,120]
[375905909,1753779068325,-770.0,0.00042,60]
[375905910,1753779068351,-229.09572766,0.00042,120]
[375905911,1753779068375,-1759.80658223,0.000424,120]
[375905912,1753779068400,-5000.0,0.0004249,90]
[375905913,1753779068424,-1000.0,0.000425,120]
[375905914,1753779068448,-163.0,0.000428,120]
[375905915,1753779068471,-2156.97,0.000429,120]
[375905916,1753779068495,-506.78,0.00043,120]
[375905917,1753779068519,-10000.0,0.00043,120]
[375905918,1753779068544,-2234.6,0.00043013,120]
[375905919,1753779068568,-200000.0,0.00043322,120]
[375905920,1753779068592,-562.471,0.00043384,67]
[375905921,1753779068617,-5000.0,0.0004349,90]
[375905922,1753779068640,-1000.0,0.000438,90]
[375905923,1753779068665,-854.0,0.000438,90]
[375905924,1753779068689,-1000.0,0.000438,90]
[375905925,1753779076756,158.208121,0.00039,30]
[375905926,1753779077076,158.208121,0.000355,30]
[375905927,1753779084844,-238.0,0.00026505,60]
[375905928,1753779084869,-1044.62876046,0.00026505,60]
[375905929,1753779084893,-1943.93147132,0.00026505,30]
[375905930,1753779084918,-244.76371287,0.00026505,30]
[375905931,1753779084942,-628.86836063,0.00026505,30]
[375905932,1753779084967,-300.0,0.00026505,30]
[375905933,1753779084992,-5160.45924711,0.00026505,30]
[375905934,1753779085018,-8398.84,0.00026505,60]
[375905935,1753779085049,-7536.77,0.00026505,60]
[375905936,1753779085078,-1832.17413252,0.00026505,60]
[375905937,1753779085105,-2000.0,0.00026505,30]
[375905938,1753779085131,-8740.7,0.00026505,60]
[375905939,1753779085155,-268.61724118,0.00026505,30]
[375905940,1753779085180,-1495.4629522,0.00026505,30]
[375905941,1753779085207,-1187.96355483,0.00026505,30]
[375905942,1753779085232,-4308.5393265,0.00026505,32]
[375905943,1753779085256,-1824.49841072,0.00026505,30]
[375905944,1753779085280,-1845.87707693,0.00026505,30]
[375905945,1753779085305,-6884.88754788,0.00026505,60]
[375905946,1753779085329,-1574.16241044,0.00026505,30]
[375905947,1753779085354,-2268.12984764,0.00026505,30]
[375905948,1753779085378,-1512.20169766,0.00026505,30]
[375905949,1753779085401,-34553.44660834,0.00026505,30]
[375905950,1753779085426,-1000.0,0.00026505,30]
[375905951,1753779085451,-157.0,0.00026505,60]
[375905952,1753779085475,-157.74354253,0.00026505,30]
[375905953,1753779085499,-1201.599999,0.00026505,30]
[375905954,1753779085523,-570.5,0.00026505,60]
[375905955,1753779087547,8106.8816575,0.00018011,2]
[375905956,1753779087569,30000.0,0.00018011,2]
[375905957,1753779087590,24633.3969198,0.00018011,2]
[375905961,1753779179306,158.0,0.00024,120]
[375905962,1753779180694,158.0,0.000251,120]
[375905965,1753779252680,5000.0,0.00018501,2]
[375905966,1753779268984,366.6030802,0.00018501,2]
[375905967,1753779269011,4633.3969198,0.00018501,2]
[375905969,1753779286333,5000.0,0.00018501,2]
[375905970,1753779301808,5000.0,0.00018501,2]
[375905971,1753779305918,-225.13567612,0.00018786,2]
[375905972,1753779305943,-163.8564235,0.00018868,2]
[375905973,1753779305972,-1909.86818188,0.00018886,2]
[375905974,1753779306000,-1264.08699473,0.00018886,2]
[375905975,1753779306026,-582.21519902,0.00018973,2]
[375905976,1753779306052,-500.0,0.00018973,2]
[375905977,1753779306079,-300.0,0.00018976,2]
[375905978,1753779306105,-300.0,0.00018976,2]
[375905979,1753779306129,-300.0,0.00018976,2]
[375905980,1753779306154,-300.0,0.00018976,2]
[375905981,1753779306180,-1688.29726814,0.00018977,2]
[375905982,1753779306205,-1200.0,0.00018977,2]
[375905983,1753779306231,-500.0,0.00018977,2]
[375905984,1753779306255,-500.0,0.00018977,2]
[375905985,1753779306283,-199.3499585,0.00018977,2]
[375905986,1753779306308,-500.0,0.00018977,2]
[375905987,1753779306333,-359.75344919,0.00018977,2]
[375905988,1753779306360,-500.0,0.00018977,2]
[375905989,1753779306386,-300.0,0.00018977,2]
[375905990,1753779306410,-500.0,0.00018977,2]
[375905991,1753779306434,-467.95277359,0.00018977,2]
[375905992,1753779306459,-500.0,0.00018977,2]
[375905993,1753779306487,-500.0,0.00018977,2]
[375905994,1753779306511,-625.78961914,0.00018977,2]
[375905995,1753779306538,-500.0,0.00018977,2]
[375905996,1753779306564,-500.0,0.00018977,2]
[375905997,1753779306589,-500.0,0.00018977,2]
[375905998,1753779306618,-500.0,0.00018977,2]
[375905999,1753779306644,-500.0,0.00018977,2]
[375906000,1753779306671,-500.0,0.00018977,2]
[375906001,1753779306699,-500.0,0.00018977,2]
[375906002,1753779306729,-500.0,0.00018977,2]
[375906003,1753779306757,-500.0,0.00018977,2]
[375906004,1753779306785,-177.49570467,0.00018977,2]
[375906005,1753779306811,-500.0,0.00018977,2]
[375906006,1753779306844,-500.0,0.00018977,2]
[375906007,1753779306880,-370000.0,0.00018978,2]
[375906008,1753779306905,-460.0,0.00019178,2]
[375906009,1753779306930,-471.73,0.00019178,2]
[375906010,1753779306958,-460.0,0.00019178,2]
[375906011,1753779306984,-460.57828128,0.00019178,2]
[375906012,1753779307011,-342.38892854,0.00019178,2]
[375906013,1753779307037,-460.0,0.00019178,2]
[375906014,1753779307064,-460.0,0.00019178,2]
[375906015,1753779307097,-460.0,0.00019178,2]
[375906016,1753779307259,-460.0,0.00019178,2]
[375906017,1753779307289,-460.0,0.00019178,2]
[375906018,1753779307321,-460.0,0.00019178,2]
[375906019,1753779307349,-460.0,0.00019178,2]
[375906020,1753779307377,-460.0,0.00019178,2]
[375906021,1753779307404,-460.0,0.00019178,2]
[375906022,1753779307431,-1290.13,0.00019178,2]
[375906023,1753779307458,-460.0,0.00019178,2]
[375906024,1753779307489,-702.61,0.00019178,2]
[375906025,1753779307516,-460.0,0.00019178,2]
[375906026,1753779307542,-460.0,0.00019178,2]
[375906027,1753779307570,-460.0,0.00019178,2]
[375906028,1753779307597,-460.0,0.00019178,2]
[375906029,1753779307627,-460.0,0.00019178,2]
[375906030,1753779307654,-460.0,0.00019178,2]
[375906031,1753779307682,-460.0,0.00019178,2]
[375906032,1753779307709,-462.89715557,0.00019178,2]
[375906033,1753779307743,-1690.07,0.00019178,2]
[375906034,1753779307771,-460.0,0.00019178,2]
[375906035,1753779307799,-582.18,0.00019178,2]
[375906036,1753779307826,-460.0,0.00019178,2]
[375906037,1753779307852,-460.0,0.00019178,2]
[375906038,1753779307879,-601.27,0.00019178,2]
[375906039,1753779307904,-460.0,0.00019178,2]
[375906040,1753779307931,-973.77,0.00019178,2]
[375906041,1753779307956,-460.0,0.00019178,2]
[375906042,1753779307987,-460.0,0.00019178,2]
[375906043,1753779308015,-461.16201749,0.00019178,2]
[375906044,1753779308040,-460.0,0.00019178,2]
[375906045,1753779308066,-460.0,0.00019178,2]
[375906046,1753779308091,-460.0,0.00019178,2]
[375906047,1753779308119,-460.0,0.00019178,2]
[375906048,1753779308164,-460.0,0.00019178,2]
[375906049,1753779308189,-460.0,0.00019178,2]
[375906050,1753779308227,-467.64182818,0.00019178,2]
[375906051,1753779308263,-460.0,0.00019178,2]
[375906052,1753779308311,-460.0,0.00019178,2]
[375906053,1753779308344,-460.0,0.00019178,2]
[375906054,1753779308385,-460.0,0.00019178,2]
[375906055,1753779308415,-460.0,0.00019178,2]
[375906056,1753779308455,-460.0,0.00019178,2]
[375906057,1753779308493,-460.0,0.00019178,2]
[375906058,1753779308528,-460.0,0.00019178,2]
[375906059,1753779308555,-156.0624735,0.00019178,2]
[375906060,1753779308583,-460.0,0.00019178,2]
[375906061,1753779308614,-4032.24,0.00019178,2]
[375906062,1753779308640,-460.0,0.00019178,2]
[375906063,1753779308666,-523.13,0.00019178,2]
[375906064,1753779308693,-1328.27,0.00019178,2]
[375906065,1753779308720,-460.0,0.00019178,2]
[375906066,1753779308746,-460.0,0.00019178,2]
[375906067,1753779308774,-514.83,0.00019178,2]
[375906068,1753779308806,-460.0,0.00019178,2]
[375906069,1753779308852,-460.0,0.00019178,2]
[375906070,1753779308888,-460.0,0.00019178,2]
[375906071,1753779308918,-460.0,0.00019178,2]
[375906072,1753779308951,-460.0,0.00019178,2]
[375906073,1753779308993,-460.0,0.00019178,2]
[375906074,1753779309027,-710.32,0.00019178,2]
[375906075,1753779309062,-460.0,0.00019178,2]
[375906076,1753779309088,-460.0,0.00019178,2]
[375906077,1753779309124,-460.0,0.00019178,2]
[375906078,1753779309151,-460.0,0.00019178,2]
[375906079,1753779309208,-460.0,0.00019178,2]
[375906080,1753779309241,-460.0,0.00019178,2]
[375906081,1753779309295,-460.0,0.00019178,2]
[375906082,1753779309329,-460.0,0.00019178,2]
[375906083,1753779309356,-460.0,0.00019178,2]
[375906084,1753779309383,-550.56,0.00019178,2]
[375906085,1753779309408,-460.0,0.00019178,2]
[375906086,1753779309432,-460.0,0.00019178,2]
[375906087,1753779309457,-460.0,0.00019178,2]
[375906088,1753779309483,-460.0,0.00019178,2]
[375906089,1753779309507,-460.0,0.00019178,2]
[375906090,1753779309533,-2373.85,0.00019178,2]
[375906091,1753779309559,-460.0,0.00019178,2]
[375906092,1753779309585,-460.0,0.00019178,2]
[375906093,1753779309611,-1118.73,0.00019178,2]
[375906094,1753779309635,-460.0,0.00019178,2]
[375906095,1753779309663,-460.0,0.00019178,2]
[375906096,1753779309691,-460.0,0.00019178,2]
[375906097,1753779309717,-460.0,0.00019178,2]
[375906098,1753779309744,-460.0,0.00019178,2]
[375906099,1753779309770,-460.0,0.00019178,2]
[375906100,1753779309797,-460.0,0.00019178,2]
[375906101,1753779309823,-460.0,0.00019178,2]
[375906102,1753779309849,-460.0,0.00019178,2]
[375906103,1753779309876,-744.87,0.00019178,2]
[375906104,1753779309900,-460.0,0.00019178,2]
[375906105,1753779309926,-460.0,0.00019178,2]
[375906106,1753779309951,-460.0,0.00019178,2]
[375906107,1753779309978,-945.42,0.00019178,2]
[375906108,1753779310003,-460.0,0.00019178,2]
[375906109,1753779310028,-460.0,0.00019178,2]
[375906110,1753779310053,-460.0,0.00019178,2]
[375906111,1753779310078,-3273.72,0.00019178,2]
[375906112,1753779310214,-460.0,0.00019178,2]
[375906113,1753779310239,-460.0,0.00019178,2]
[375906114,1753779310265,-176.82653831,0.00019178,2]
[375906115,1753779310291,-1959.48,0.00019178,2]
[375906116,1753779310318,-521.35,0.00019178,2]
[375906117,1753779310346,-2163.89,0.00019178,2]
[375906118,1753779310372,-460.0,0.00019178,2]
[375906119,1753779310398,-460.0,0.00019178,2]
[375906120,1753779310422,-449.07316955,0.00019178,2]
[375906121,1753779310448,-2050.84,0.00019178,2]
[375906122,1753779310472,-460.58815721,0.00019178,2]
[375906123,1753779310497,-460.0,0.00019178,2]
[375906124,1753779310523,-460.0,0.00019178,2]
[375906125,1753779310547,-465.42611784,0.00019178,2]
[375906126,1753779310570,-5000.0,0.00019178,2]
[375906127,1753779310596,-500.0,0.00019178,2]
[375906128,1753779310680,300.0,0.00018975,2]
[375906129,1753779310720,1200.0,0.00018972,2]
[375906130,1753779310984,460.0,0.00019178,2]
[375906131,1753779313022,460.0,0.00019178,2]
[375906132,1753779314940,549.51656381,0.00019178,2]
[375906133,1753779315491,460.0,0.00019178,2]
[375906134,1753779317297,460.0,0.00019178,2]
[375906135,1753779318195,597.89,0.00019178,2]
[375906136,1753779328635,500.0,0.00018395,2]
[375906137,1753779334242,500.0,0.00018395,2]
[375906139,1753779338929,500.0,0.00018395,2]
[375906140,1753779342367,250.0,0.00018241,2]
[375906141,1753779509819,5000.0,0.00018501,2]
[375906142,1753779525709,5000.0,0.00018501,2]
[375906143,1753779542766,3616.6030802,0.00018501,2]
[375906144,1753779542788,1383.3969198,0.00018501,2]
[375906145,1753779558734,5000.0,0.00018501,2]
[375906146,1753779574127,5000.0,0.00018501,2]
[375906148,1753779590226,5000.0,0.00018501,2]
[375906149,1753779605605,307.64617957,0.00018401,2]
[375906150,1753779607344,5000.0,0.00018501,2]
[375906152,1753779623369,5000.0,0.00018501,2]
[375906153,1753779639207,3308.95690063,0.00018501,2]
[375906154,1753779639229,1691.04309937,0.00018501,2]
[375906155,1753779654987,5000.0,0.00018501,2]
[375906157,1753779670320,5000.0,0.00018501,2]
[375906158,1753779687194,5000.0,0.00018501,2]
[375906159,1753779705720,199.7315824,0.00017869,2]
[375906160,1753779706068,5000.0,0.00018501,2]
[375906161,1753779725369,5000.0,0.00018501,2]
[375906162,1753779737247,3109.22531823,0.00017868,2]
[375906163,1753779737269,21790.77468177,0.00017868,2]
[375906165,1753779742370,714.01,0.00026,120]
[375906166,1753779742581,5000.0,0.00018501,2]
[375906167,1753779759562,3209.22531823,0.00018501,2]
[375906168,1753779759586,1790.77468177,0.00018501,2]
[375906169,1753779775465,5000.0,0.00018501,2]
[375906170,1753779791111,5000.0,0.00018501,2]
[375906173,1753779807838,5000.0,0.00018501,2]
[375906175,1753779816550,209.490145,0.00013699,2]
[375906178,1753779823396,5000.0,0.00018501,2]
[375906180,1753779841309,5000.0,0.00018501,2]
[375906181,1753779856886,2999.73517323,0.00018501,2]
[375906182,1753779856908,2000.26482677,0.00018501,2]
[375906183,1753779873509,4532.63242511,0.00018501,2]
[375906184,1753779878612,23467.10274812,0.00017869,2]
[375906185,1753779878633,19485.49701328,0.00017869,2]
[375906190,1753779957730,241.168067,0.00018235,2]
[375906191,1753780012841,-200.73833547,0.00018503,2]
[375906192,1753780015837,-24.39734065,0.00018503,2]
[375906193,1753780015860,-435.60265935,0.00018603,2]
[375906194,1753780018351,-3.46108467,0.00018603,2]
[375906195,1753780018376,-219.53187201,0.00018603,2]
[375906196,1753780018399,-209.14840176,0.00018798,2]
[375906197,1753780022364,-460.0,0.00018798,2]
[375906198,1753780024214,-740.0,0.00018798,2]
[375906199,1753780024238,-300.0,0.00018799,2]
[375906200,1753780024261,-300.0,0.00018799,2]
[375906201,1753780024285,-235.38747277,0.00018799,2]
[375906202,1753780027874,-64.61252723,0.00018799,2]
[375906203,1753780027898,-300.0,0.00018799,2]
[375906204,1753780027922,-95.38747277,0.00018799,2]
[375906205,1753780030170,-460.0,0.00018799,2]
[375906206,1753780031867,-276.68737774,0.00018799,2]